bitfinex/quotes_BTCUSD_20241215
["timestamp","ask_amount","ask_price","bid_price","bid_amount"]
[1734266613374,0.0481,103080.0,103060.0,0.194049]
[1734266613589,0.09905403,103070.0,103060.0,0.344049]
[1734266613799,0.09905403,103070.0,103060.0,0.35040936]
[1734266614037,0.09905403,103070.0,103060.0,0.344049]
[1734266615961,0.01128233,103080.0,103060.0,0.344049]
[1734266616174,0.11033636,103080.0,103070.0,0.344042]
[1734266616394,0.09905403,103080.0,103070.0,0.344042]
[1734266617063,0.09901403,103080.0,103070.0,0.344042]
[1734266617277,0.0481863,103100.0,103080.0,0.588023]
[1734266617278,8.63e-05,103100.0,103080.0,0.588023]
[1734266617506,0.09914033,103100.0,103090.0,0.344005]
[1734266617735,8.63e-05,103100.0,103090.0,0.344005]
[1734266618444,8.63e-05,103100.0,103090.0,0.394005]
[1734266618889,8.63e-05,103100.0,103090.0,0.39416933]
[1734266619546,8.63e-05,103100.0,103090.0,0.47146933]
[1734266620427,8.63e-05,103100.0,103090.0,1.82716036]
[1734266621309,8.63e-05,103100.0,103090.0,1.67810633]
[1734266621518,8.63e-05,103100.0,103090.0,0.62069633]
[1734266623093,8.63e-05,103100.0,103090.0,0.47146933]
[1734266625041,8.63e-05,103100.0,103090.0,0.89207433]
[1734266626120,8.63e-05,103100.0,103090.0,1.04112836]
[1734266627173,8.63e-05,103100.0,103090.0,0.99112836]
[1734266627797,8.63e-05,103100.0,103090.0,1.04112836]
[1734266629110,8.63e-05,103100.0,103090.0,0.99112836]
[1734266629542,8.63e-05,103100.0,103090.0,1.04112836]
[1734266630030,8.63e-05,103100.0,103090.0,0.89207433]
[1734266630682,8.63e-05,103100.0,103090.0,0.47146933]
[1734266631130,8.63e-05,103100.0,103090.0,1.02677633]
[1734266632854,8.63e-05,103100.0,103090.0,0.67399833]
[1734266633062,0.2759503,103100.0,103090.0,0.67399833]
[1734266634162,0.1789553,103100.0,103090.0,0.82474808]
[1734266635721,0.1401573,103100.0,103090.0,0.82390022]
[1734266635933,0.1401573,103100.0,103090.0,0.82305236]
[1734266636589,0.0431623,103100.0,103090.0,0.82474808]
[1734266636799,0.0431623,103100.0,103090.0,0.82305236]
[1734266637470,3e-07,103100.0,103090.0,0.82305236]
[1734266637679,3e-07,103100.0,103090.0,0.62052336]
[1734266637889,3e-07,103100.0,103090.0,0.62221908]
[1734266638098,3e-07,103100.0,103090.0,0.62052336]
[1734266639449,0.3418955,103110.0,103100.0,0.1]
[1734266639669,0.3031015,103110.0,103100.0,1.67365203]
[1734266639881,0.3031015,103110.0,103100.0,0.66413703]
[1734266640105,0.3031015,103110.0,103100.0,0.393986]
[1734266649604,0.3031015,103110.0,103100.0,0.42385273]
[1734266652662,0.2837045,103110.0,103100.0,0.42385273]
[1734266652908,0.2061165,103110.0,103100.0,2.18822676]
[1734266653118,0.2061165,103110.0,103100.0,2.31512676]
[1734266653557,0.1091315,103110.0,103100.0,2.31512676]
[1734266654228,0.1092177,103110.0,103100.0,2.31512676]
[1734266654445,0.0122327,103110.0,103100.0,2.31512676]
[1734266654863,0.0122327,103110.0,103100.0,2.13775376]
[1734266655071,0.0122327,103110.0,103100.0,2.12515676]
[1734266655518,7e-07,103110.0,103100.0,2.12515676]
[1734266655943,7e-07,103110.0,103100.0,0.69980676]
[1734266656586,7e-07,103110.0,103100.0,0.78505187]
[1734266656821,7e-07,103110.0,103100.0,1.22070875]
[1734266657255,0.1179732,103150.0,103140.0,0.343911]
[1734266657471,0.22797816,103150.0,103140.0,0.343911]
[1734266658126,0.22797816,103150.0,103140.0,0.373911]
[1734266658562,0.22852474,103150.0,103140.0,0.373911]
[1734266659007,0.18585154,103150.0,103140.0,0.373911]
[1734266659217,0.11055154,103150.0,103140.0,0.373911]
[1734266659706,0.11055154,103150.0,103140.0,0.423911]
[1734266661005,0.11051154,103150.0,103140.0,0.423911]
[1734266666300,0.11059764,103150.0,103140.0,0.423911]
[1734266669556,0.01154361,103150.0,103140.0,0.423911]
[1734266670234,0.01154361,103150.0,103140.0,0.635048]
[1734266670235,6.8e-07,103150.0,103140.0,0.635048]
[1734266670447,6.8e-07,103150.0,103140.0,0.76933443]
[1734266670659,6.8e-07,103150.0,103140.0,1.10306046]
[1734266672622,6.8e-07,103150.0,103140.0,0.50984037]
[1734266672839,6.8e-07,103150.0,103140.0,0.423911]
[1734266675007,6.8e-07,103150.0,103140.0,0.50980607]
[1734266675428,6.8e-07,103150.0,103140.0,0.63864868]
[1734266675637,6.8e-07,103150.0,103140.0,0.81584868]
[1734266675842,6.8e-07,103150.0,103140.0,1.32094608]
[1734266676048,6.8e-07,103150.0,103140.0,1.6347378]
[1734266676270,6.8e-07,103160.0,103150.0,0.1]
[1734266676477,6.8e-07,103160.0,103150.0,0.35883032]
[1734266676478,5.2e-07,103160.0,103150.0,0.35883032]
[1734266676692,8.2e-07,103180.0,103170.0,0.3516]
[1734266676915,1.13771013,103200.0,103190.0,0.05]
[1734266677127,1.13787427,103200.0,103190.0,0.05]
[1734266677337,1.2369283,103200.0,103190.0,0.343817]
[1734266677549,1.2563283,103200.0,103190.0,0.343817]
[1734266681151,1.26719295,103200.0,103190.0,0.343817]
[1734266682640,1.26719295,103200.0,103190.0,0.373817]
[1734266683331,1.88369295,103200.0,103190.0,0.03]
[1734266683541,2.07749095,103200.0,103180.0,0.193825]
[1734266683752,0.14655403,103190.0,103180.0,0.193825]
[1734266684596,0.14655403,103190.0,103180.0,0.343825]
[1734266685008,0.22615403,103190.0,103180.0,0.193825]
[1734266686319,0.22615403,103190.0,103180.0,0.343825]
[1734266687705,0.09905403,103190.0,103180.0,0.343825]
[1734266689147,1.16813892,103200.0,103180.0,0.343825]
[1734266689368,1.26719295,103200.0,103190.0,0.15]
[1734266689602,1.15843892,103200.0,103190.0,0.343817]
[1734266691528,1.25749295,103200.0,103190.0,0.343817]
[1734266693621,1.15843892,103200.0,103190.0,0.343817]
[1734266693825,1.25749295,103200.0,103190.0,0.343817]
[1734266694038,1.36016173,103200.0,103190.0,0.343817]
[1734266694708,1.34059295,103200.0,103190.0,0.343817]
[1734266694915,1.87749295,103200.0,103190.0,0.343817]
[1734266695772,1.79439295,103200.0,103190.0,0.343817]
[1734266697157,1.79439295,103200.0,103190.0,0.363817]
[1734266697989,1.25749295,103200.0,103190.0,0.363817]
[1734266699242,1.25749295,103200.0,103190.0,0.02]
[1734266699888,1.25749295,103200.0,103190.0,0.213817]
[1734266700942,1.79439295,103200.0,103190.0,0.213817]
[1734266701995,1.79447905,103200.0,103190.0,0.213817]
[1734266702841,1.80417905,103200.0,103190.0,0.213817]
[1734266703874,1.26727905,103200.0,103190.0,0.363817]
[1734266706182,1.26727905,103200.0,103190.0,0.373417]
[1734266706621,0.094986,103220.0,103210.0,0.35]
[1734266706622,0.011886,103220.0,103210.0,0.35]
[1734266706839,0.32540923,103250.0,103240.0,0.243723]
[1734266706840,0.065121,103250.0,103240.0,0.243723]
[1734266707053,0.065121,103250.0,103240.0,0.54277703]
[1734266707260,0.065121,103250.0,103240.0,0.443723]
[1734266707470,0.065121,103250.0,103240.0,0.453323]
[1734266707689,0.060121,103250.0,103240.0,0.362923]
[1734266707897,0.060121,103250.0,103240.0,0.688364]
[1734266707898,0.040751,103250.0,103240.0,0.688364]
[1734266708140,0.04091514,103250.0,103240.0,1.00191491]
[1734266708783,0.04091514,103250.0,103240.0,0.87321678]
[1734266708990,0.04091514,103250.0,103240.0,0.362923]
[1734266709213,0.04091514,103250.0,103240.0,0.1692]
[1734266709214,0.13996917,103250.0,103240.0,0.1692]
[1734266709467,0.33367317,103250.0,103240.0,0.0192]
[1734266709676,0.33367317,103250.0,103240.0,0.00895786]
[1734266709677,0.46187317,103250.0,103240.0,0.00895786]
[1734266710097,0.48487317,103250.0,103240.0,0.00895786]
[1734266710313,0.48483317,103250.0,103240.0,0.00895786]
[1734266713108,0.49556176,103250.0,103240.0,0.00895786]
[1734266713550,0.49556176,103250.0,103240.0,0.01855786]
[1734266713765,0.193753,103230.0,103190.0,0.193802]
[1734266713976,0.34182503,103220.0,103190.0,0.387608]
[1734266714187,0.53559703,103220.0,103190.0,0.387619]
[1734266714408,0.34182503,103220.0,103190.0,0.387619]
[1734266714635,0.14805403,103220.0,103190.0,0.387607]
[1734266714851,0.14805403,103220.0,103200.0,0.387569]
[1734266715290,0.14805403,103220.0,103200.0,0.15]
[1734266715505,0.34181603,103220.0,103200.0,0.15]
[1734266715955,0.049,103240.0,103230.0,0.15]
[1734266716192,0.14805403,103240.0,103230.0,0.15]
[1734266716698,0.14805403,103240.0,103230.0,0.315742]
[1734266718157,0.67168983,103250.0,103230.0,0.509469]
[1734266718417,0.77074386,103250.0,103240.0,0.193723]
[1734266718654,0.05168983,103250.0,103240.0,0.193723]
[1734266718873,0.04096124,103250.0,103240.0,0.443723]
[1734266719081,0.04096124,103250.0,103240.0,0.343723]
[1734266721908,0.14001527,103250.0,103240.0,0.343723]
[1734266722531,0.14001527,103250.0,103240.0,0.15]
[1734266722739,0.14001527,103250.0,103240.0,0.343723]
[1734266723396,0.14001527,103250.0,103240.0,0.15]
[1734266723599,0.35671927,103250.0,103230.0,0.193727]
[1734266723800,0.45138124,103250.0,103240.0,0.15]
[1734266724012,0.14001527,103250.0,103240.0,0.343723]
[1734266724975,0.35671927,103250.0,103240.0,0.15]
[1734266725439,0.35671927,103250.0,103230.0,0.193727]
[1734266725657,0.09905403,103240.0,103230.0,0.343727]
[1734266725871,0.09905403,103240.0,103230.0,0.15]
[1734266726079,0.56371203,103240.0,103220.0,0.3875]
[1734266726269,0.049,103230.0,103210.0,0.387534]
[1734266726488,0.34179603,103230.0,103210.0,0.581298]
[1734266726693,0.87869603,103230.0,103210.0,0.581298]
[1734266726892,0.87869603,103230.0,103210.0,0.387529]
[1734266726893,0.68495403,103230.0,103210.0,0.387529]
[1734266727097,0.70795403,103230.0,103220.0,0.19376]
[1734266727296,0.70795403,103230.0,103210.0,0.581297]
[1734266727496,0.90169603,103230.0,103210.0,0.581297]
[1734266727723,0.90169603,103230.0,103210.0,0.38753]
[1734266727724,0.70795403,103230.0,103210.0,0.38753]
[1734266727907,0.70795403,103230.0,103220.0,0.19376]
[1734266728120,0.68495403,103230.0,103220.0,0.19376]
[1734266728325,0.70795403,103230.0,103220.0,0.19376]
[1734266728772,0.023,103220.0,103210.0,0.5813]
[1734266728973,0.12205403,103220.0,103210.0,0.53753]
[1734266730632,0.09905403,103220.0,103210.0,0.53753]
[1734266731563,0.12205403,103220.0,103210.0,0.53753]
[1734266733054,0.12205403,103220.0,103190.0,0.3877862]
[1734266733055,0.65895403,103220.0,103190.0,0.3877862]
[1734266733266,0.19845403,103210.0,103190.0,0.1939772]
[1734266733501,0.92914403,103210.0,103190.0,0.1939772]
[1734266733718,0.92914403,103210.0,103190.0,0.0001722]
[1734266733719,0.262498,103200.0,103190.0,0.0001722]
[1734266733967,0.89845203,103200.0,103190.0,0.0001722]
[1734266734715,0.36155203,103200.0,103190.0,0.00033634]
[1734266735332,0.753717,103190.0,103180.0,0.0001722]
[1734266735542,0.85277103,103190.0,103180.0,0.0001722]
[1734266736164,0.8474377,103190.0,103180.0,0.0001722]
[1734266736373,0.3105377,103190.0,103180.0,0.0001722]
[1734266736786,0.36128909,103190.0,103180.0,0.0001722]
[1734266736988,0.5125955,103190.0,103180.0,0.0001722]
[1734266737194,0.43768909,103190.0,103180.0,0.0001722]
[1734266737816,0.023,103150.0,103140.0,0.1940712]
[1734266738021,0.36164603,103150.0,103140.0,0.0001722]
[1734266738230,0.16775403,103150.0,103140.0,0.0001722]
[1734266738647,0.43804603,103150.0,103140.0,0.0001722]
[1734266739063,0.24415403,103150.0,103140.0,0.1940832]
[1734266739275,0.24415403,103150.0,103140.0,0.19462978]
[1734266741157,0.16775403,103150.0,103140.0,0.19462978]
[1734266741398,0.16775403,103150.0,103140.0,0.00071878]
[1734266741598,0.36164603,103150.0,103140.0,0.00071878]
[1734266743311,0.44254603,103150.0,103140.0,0.00071878]
[1734266743771,0.46203796,103150.0,103140.0,0.00071878]
[1734266744002,0.44254603,103150.0,103140.0,0.00071878]
[1734266744633,0.52557823,103150.0,103140.0,0.00071878]
[1734266744841,0.44254603,103150.0,103140.0,0.00071878]
[1734266745246,0.45311504,103150.0,103140.0,0.00071878]
[1734266746477,0.45311504,103150.0,103100.0,0.05031318]
[1734266746478,0.05,103140.0,103100.0,0.05031318]
[1734266746681,0.073,103140.0,103130.0,0.193928]
[1734266746884,0.12205403,103140.0,103130.0,0.193928]
[1734266747289,0.17205403,103140.0,103130.0,0.193928]
[1734266747697,0.12205403,103140.0,103130.0,0.193928]
[1734266747905,0.17205403,103140.0,103130.0,0.213928]
[1734266748112,0.023,103130.0,103120.0,0.193933]
[1734266748285,0.11435403,103130.0,103110.0,0.387923]
[1734266748510,0.09905403,103120.0,103110.0,0.387923]
[1734266748629,0.09905403,103120.0,103110.0,0.193956]
[1734266748830,0.09905403,103120.0,103100.0,0.387949]
[1734266749031,0.09905403,103120.0,103110.0,0.193967]
[1734266749895,0.09905403,103120.0,103100.0,0.581925]
[1734266750102,0.09905403,103120.0,103100.0,0.387949]
[1734266750305,0.09905403,103120.0,103090.0,0.470697]
[1734266750306,0.58366603,103120.0,103090.0,0.387977]
[1734266750532,0.266968,103110.0,103090.0,0.193987]
[1734266750877,0.05,103100.0,103080.0,0.40337847]
[1734266750999,0.09905403,103090.0,103080.0,0.40337847]
[1734266751203,0.09905403,103090.0,103080.0,0.01535447]
[1734266751404,0.12205403,103090.0,103080.0,0.01535447]
[1734266751837,0.90025903,103090.0,103080.0,0.01551831]
[1734266752859,0.90025903,103090.0,103080.0,0.00033624]
[1734266754166,0.72590557,103090.0,103080.0,0.19436024]
[1734266754368,0.65560557,103090.0,103080.0,0.19436024]
[1734266754578,0.65560557,103090.0,103080.0,0.34436024]
[1734266755001,0.29900557,103090.0,103080.0,0.00033624]
[1734266755232,0.44301057,103090.0,103080.0,0.00033624]
[1734266755645,0.244024,103080.0,103070.0,0.0001722]
[1734266755845,0.36607803,103080.0,103070.0,0.00033653]
[1734266756047,0.31607803,103080.0,103070.0,0.00033653]
[1734266757317,0.36337803,103080.0,103070.0,0.00033653]
[1734266757548,0.60142798,103080.0,103070.0,0.00673455]
[1734266757750,0.60142798,103080.0,103070.0,0.00033653]
[1734266757955,0.023,103050.0,103030.0,0.5824884]
[1734266758153,0.023,103050.0,103040.0,0.194099]
[1734266758334,0.12205403,103050.0,103040.0,0.194099]
[1734266758995,0.12205403,103050.0,103030.0,0.1942764]
[1734266758996,0.31613503,103050.0,103030.0,0.1942764]
[1734266759261,0.31613503,103050.0,103030.0,0.3883934]
[1734266759450,0.12205403,103050.0,103040.0,0.194099]
[1734266759664,0.09905403,103050.0,103040.0,0.344099]
[1734266760080,0.09905403,103050.0,103040.0,0.194099]
[1734266760906,0.09905403,103050.0,103040.0,0.344099]
[1734266761730,0.09905403,103050.0,103040.0,0.394099]
[1734266761951,0.5369,103060.0,103050.0,0.15]
[1734266762155,0.09905403,103060.0,103050.0,0.34408]
[1734266762381,0.09905403,103060.0,103050.0,0.54455803]
[1734266763033,0.09905403,103060.0,103050.0,0.15639803]
[1734266763243,0.09905403,103060.0,103050.0,0.35047803]
[1734266764075,0.12205403,103060.0,103050.0,0.35047803]
[1734266764276,0.12205403,103060.0,103050.0,0.15639803]
[1734266764478,0.85301503,103060.0,103050.0,0.15639803]
[1734266764682,0.85301503,103060.0,103050.0,0.00639803]
[1734266765931,0.65895403,103060.0,103050.0,0.20047803]
[1734266766356,0.65895403,103060.0,103050.0,0.00639803]
[1734266766569,0.63595403,103060.0,103050.0,0.00639803]
[1734266767213,0.65895403,103060.0,103050.0,0.00639803]
[1734266767424,0.90301503,103060.0,103050.0,0.00639803]
[1734266767632,0.19409,103050.0,103030.0,0.1942794]
[1734266767841,0.09905403,103040.0,103030.0,0.0001724]
[1734266768262,0.29315303,103040.0,103030.0,0.0001724]
[1734266768731,0.09905403,103040.0,103030.0,0.0001724]
[1734266768913,0.09905403,103040.0,103030.0,0.2442904]
[1734266769134,0.00016381,103040.0,103030.0,0.4383934]
[1734266769351,0.29331684,103040.0,103030.0,0.1501724]
[1734266769989,0.09921784,103040.0,103030.0,0.1501724]
[1734266770197,0.09921784,103040.0,103030.0,0.3442904]
[1734266774254,0.09921784,103040.0,103030.0,0.3942904]
[1734266774689,0.09921784,103040.0,103030.0,0.3442904]
[1734266776644,0.09921784,103040.0,103030.0,0.3942904]
[1734266776880,0.00016381,103040.0,103030.0,0.5843414]
[1734266777631,0.55020931,103060.0,103040.0,0.344089]
[1734266777837,0.09905403,103050.0,103040.0,0.344089]
[1734266778276,0.09905403,103050.0,103040.0,0.538178]
[1734266781694,0.12205403,103050.0,103040.0,0.15]
[1734266781907,0.31613403,103050.0,103040.0,0.15]
[1734266782549,0.194099,103040.0,103030.0,0.00033621]
[1734266782758,0.36215303,103040.0,103030.0,0.00033621]
[1734266784029,0.36215303,103040.0,103030.0,0.19445421]
[1734266784236,0.14505403,103040.0,103030.0,0.19445421]
[1734266784437,0.09905403,103040.0,103030.0,0.19445421]
[1734266785896,0.31615303,103040.0,103030.0,0.00033621]
[1734266786314,0.31615303,103040.0,103030.0,0.19445421]
[1734266786519,0.31615303,103040.0,103030.0,0.00033621]
[1734266787998,0.09905403,103040.0,103030.0,0.34445421]
[1734266788181,0.66155924,103060.0,103050.0,0.19408]
[1734266788421,0.76061327,103060.0,103050.0,0.19408]
[1734266789248,0.95467427,103060.0,103050.0,0.19408]
[1734266789453,0.2340593,103060.0,103050.0,0.19408]
[1734266789664,0.10940006,103060.0,103050.0,0.34408]
[1734266789874,0.01034603,103060.0,103050.0,0.39408]
[1734266790103,8.62e-05,103070.0,103060.0,0.15]
[1734266790345,0.09914023,103070.0,103060.0,0.344061]
[1734266791607,0.09914023,103070.0,103060.0,0.34256108]
[1734266792243,0.10946104,103070.0,103060.0,0.34256108]
[1734266792662,0.09914023,103070.0,103060.0,0.34256108]
[1734266793093,0.09914023,103070.0,103060.0,0.39256108]
[1734266793346,8.62e-05,103070.0,103060.0,3.66305008]
[1734266793557,8.62e-05,103070.0,103060.0,1.40161626]
[1734266793760,8.62e-05,103070.0,103060.0,1.23681326]
[1734266794007,8.62e-05,103070.0,103060.0,1.26678464]
[1734266794442,8.62e-05,103070.0,103060.0,0.91897386]
[1734266794650,8.62e-05,103070.0,103060.0,1.23698453]
[1734266794858,8.62e-05,103070.0,103060.0,1.17221696]
[1734266795064,8.62e-05,103070.0,103060.0,3.36998996]
[1734266795498,8.62e-05,103070.0,103060.0,3.39951274]
[1734266795731,8.62e-05,103070.0,103060.0,3.36655074]
[1734266797005,8.62e-05,103070.0,103060.0,3.65444044]
[1734266797006,2e-07,103070.0,103060.0,3.65444044]
[1734266797239,0.0486,103120.0,103110.0,0.343967]
[1734266797453,0.14765403,103120.0,103110.0,0.343967]
[1734266798079,0.09905403,103120.0,103110.0,0.393967]
[1734266798319,0.5855,103140.0,103120.0,0.2]
[1734266798320,0.0486,103140.0,103120.0,0.2]
[1734266798522,0.09905403,103130.0,103120.0,0.2]
[1734266798936,0.09905403,103130.0,103120.0,0.393933]
[1734266799391,0.01084538,103140.0,103130.0,0.393929]
[1734266799595,0.10989941,103140.0,103130.0,0.393929]
[1734266799804,0.00054822,103140.0,103130.0,0.393929]
[1734266800281,0.00054822,103140.0,103130.0,1.725108]
[1734266801191,0.00054822,103140.0,103130.0,1.380168]
[1734266801358,0.00054822,103140.0,103130.0,1.47922203]
[1734266801992,0.00054822,103140.0,103130.0,1.52922203]
[1734266802199,0.00054822,103140.0,103130.0,1.65442203]
[1734266803169,0.00054822,103140.0,103130.0,1.455368]
[1734266803597,0.00054822,103140.0,103130.0,1.50188288]
[1734266804452,0.00054822,103140.0,103130.0,0.792341]
[1734266804620,0.00054822,103140.0,103130.0,0.681293]
[1734266804795,0.00054822,103140.0,103130.0,0.661916]
[1734266805408,0.00054822,103140.0,103130.0,0.413929]
[1734266805610,0.00054822,103140.0,103130.0,0.643508]
[1734266806035,0.09960225,103140.0,103130.0,0.263929]
[1734266806237,0.00054822,103140.0,103130.0,0.63012]
[1734266806840,0.00063442,103140.0,103130.0,0.63012]
[1734266807255,0.00063442,103140.0,103130.0,0.263929]
[1734266807256,0.09968845,103140.0,103130.0,0.263929]
[1734266808497,0.09968845,103140.0,103130.0,0.413929]
[1734266808954,0.14828845,103140.0,103130.0,0.17]
[1734266809122,0.34219945,103140.0,103130.0,0.17]
[1734266810145,0.14828845,103140.0,103130.0,0.413929]
[1734266810725,0.14828845,103140.0,103130.0,0.17]
[1734266810925,0.34219945,103140.0,103130.0,0.17]
[1734266811123,0.34219945,103140.0,103130.0,0.02]
[1734266812317,0.87909945,103140.0,103130.0,0.02]
[1734266812552,0.193929,103130.0,103110.0,0.437913]
[1734266812755,0.193929,103130.0,103100.0,0.01517915]
[1734266812756,0.09905403,103120.0,103100.0,0.437946]
[1734266812962,0.09905403,103120.0,103110.0,0.193967]
[1734266814216,0.09905403,103120.0,103110.0,0.343967]
[1734266815269,0.37340203,103120.0,103110.0,0.15]
[1734266815488,1.14956303,103120.0,103100.0,0.15]
[1734266815703,0.193967,103110.0,103100.0,0.15]
[1734266815918,0.29302103,103110.0,103100.0,0.15]
[1734266816574,0.29302103,103110.0,103090.0,0.63198]
[1734266816782,0.09905403,103100.0,103090.0,0.243993]
[1734266817795,0.09905403,103100.0,103090.0,0.363993]
[1734266817998,0.09921836,103100.0,103090.0,0.363993]
[1734266818848,0.09921836,103100.0,103090.0,0.413993]
[1734266819493,0.09921836,103100.0,103090.0,0.363993]
[1734266819911,0.09921836,103100.0,103090.0,0.413993]
[1734266821000,0.00016433,103100.0,103090.0,2.824376]
[1734266821901,0.00016433,103100.0,103090.0,2.375588]
[1734266822112,0.00016433,103100.0,103090.0,1.5198]
[1734266824668,0.09921836,103100.0,103090.0,0.413993]
[1734266825303,0.09921836,103100.0,103090.0,0.213993]
[1734266826441,0.09921836,103100.0,103090.0,0.413993]
[1734266826656,0.00016433,103100.0,103090.0,0.413993]
[1734266827504,0.00016433,103100.0,103090.0,0.703759]
[1734266829868,0.00016433,103100.0,103090.0,0.80263447]
[1734266830076,0.00016433,103100.0,103090.0,0.70358044]
[1734266830283,0.00016433,103100.0,103090.0,0.67837044]
[1734266830923,0.00025053,103100.0,103090.0,0.67837044]
[1734266831338,0.00025053,103100.0,103090.0,0.61247044]
[1734266832201,0.00025053,103100.0,103090.0,0.41381444]
[1734266832387,0.09930456,103100.0,103090.0,0.26381444]
[1734266833475,0.09930456,103100.0,103090.0,0.41381444]
[1734266833867,0.09930456,103100.0,103090.0,0.36381444]
[1734266834073,0.09930456,103100.0,103090.0,0.41381444]
[1734266835097,0.09930456,103100.0,103090.0,1.82594044]
[1734266835098,0.00025053,103100.0,103090.0,1.82594044]
[1734266835509,0.00025053,103100.0,103090.0,1.16880744]
[1734266835718,0.00025053,103100.0,103090.0,0.72393444]
[1734266835922,0.00025053,103100.0,103090.0,0.41381444]
[1734266836768,0.00025053,103100.0,103090.0,2.02559944]
[1734266837828,0.00025053,103100.0,103090.0,2.12465347]
[1734266838037,0.00025053,103100.0,103090.0,2.21017104]
[1734266838494,0.00025053,103100.0,103090.0,2.68633024]
[1734266838705,0.00025053,103100.0,103090.0,2.18515224]
[1734266838915,0.00025053,103100.0,103090.0,1.65335829]
[1734266839145,0.00025053,103100.0,103090.0,2.07889995]
[1734266839352,0.00025053,103100.0,103090.0,2.10878464]
[1734266840001,5.3e-07,103100.0,103090.0,2.29188464]
[1734266840211,8.62e-05,103140.0,103130.0,0.05]
[1734266840423,8.62e-05,103140.0,103130.0,0.393929]
[1734266840424,0.00063364,103140.0,103130.0,0.393929]
[1734266841107,0.09968767,103140.0,103130.0,0.343929]
[1734266841318,0.17638767,103140.0,103130.0,0.343929]
[1734266841542,0.22228767,103140.0,103130.0,0.15]
[1734266841768,0.193929,103130.0,103110.0,0.437904]
[1734266842009,0.09905403,103120.0,103110.0,0.193952]
[1734266842233,0.17575403,103120.0,103110.0,0.343952]
[1734266846637,0.08720997,103130.0,103110.0,0.587904]
[1734266846866,0.08720997,103130.0,103110.0,0.343952]
[1734266846867,0.09905403,103120.0,103110.0,0.343952]
[1734266847071,0.14495403,103120.0,103110.0,0.343952]
[1734266847271,0.14495403,103120.0,103110.0,0.15]
[1734266847720,0.33890203,103120.0,103110.0,0.343967]
[1734266848130,0.0767,103110.0,103090.0,0.02]
[1734266848332,0.29304003,103100.0,103090.0,0.02]
[1734266848756,0.29304003,103100.0,103090.0,0.214005]
[1734266849286,0.29304003,103100.0,103090.0,0.02]
[1734266849700,0.29304003,103100.0,103090.0,0.02016433]
[1734266850121,0.09905403,103100.0,103090.0,0.21416933]
[1734266850328,0.29304003,103100.0,103090.0,0.02016433]
[1734266850529,0.29304003,103100.0,103090.0,0.17016433]
[1734266850961,0.09905403,103100.0,103090.0,0.36416933]
[1734266851564,0.1095675,103100.0,103090.0,0.36416933]
[1734266852401,0.1095675,103100.0,103090.0,0.41416933]
[1734266854163,0.01051347,103100.0,103090.0,0.41416933]
[1734266854361,0.776757,103120.0,103110.0,0.193967]
[1734266854579,0.69194882,103120.0,103110.0,0.193967]
[1734266854785,0.70194882,103120.0,103110.0,0.343967]
[1734266857054,0.89589682,103120.0,103110.0,0.15]
[1734266857284,0.35899682,103120.0,103100.0,0.15]
[1734266857540,0.09905403,103110.0,103100.0,0.15]
[1734266857743,0.09905403,103110.0,103100.0,0.343986]
[1734266858161,0.09905403,103110.0,103100.0,0.393986]
[1734266859341,0.29302103,103110.0,103090.0,0.62404636]
[1734266859548,0.0491,103100.0,103090.0,0.02033673]
[1734266859768,0.41944003,103100.0,103090.0,0.02033673]
[1734266859969,0.44244003,103100.0,103090.0,0.02033673]
[1734266860202,0.41944003,103100.0,103090.0,0.02033673]
[1734266860837,0.22545403,103100.0,103090.0,0.02033673]
[1734266861053,0.22545403,103100.0,103090.0,0.21434173]
[1734266861680,0.22545403,103100.0,103090.0,0.36434173]
[1734266865004,0.23590429,103100.0,103090.0,0.36434173]
[1734266865121,0.25890429,103100.0,103090.0,0.02033673]
[1734266865325,0.45289029,103100.0,103090.0,0.02033673]
[1734266866147,0.96679029,103100.0,103090.0,0.02033673]
[1734266867028,0.96687649,103100.0,103090.0,0.02033673]
[1734266867963,0.98987649,103100.0,103090.0,0.02033673]
[1734266868162,0.45297649,103100.0,103090.0,0.02033673]
[1734266868384,0.321324,103080.0,103070.0,0.0001724]
[1734266868612,0.22635403,103080.0,103070.0,0.0001724]
[1734266869015,0.22635403,103080.0,103070.0,0.1942144]
[1734266869871,0.42037803,103080.0,103070.0,0.0001724]
[1734266870594,0.44337803,103080.0,103070.0,0.0001724]
[1734266871742,0.58151873,103080.0,103070.0,0.0001724]
[1734266871949,0.49337803,103080.0,103070.0,0.0001724]
[1734266873201,0.395942,103070.0,103060.0,0.0001724]
[1734266873435,0.49499603,103070.0,103060.0,0.0001724]
[1734266874984,0.322999,103040.0,103030.0,0.0001724]
[1734266875187,0.194118,103030.0,103020.0,0.0001724]
[1734266875410,0.39737203,103030.0,103020.0,0.0001724]
[1734266875818,0.44737203,103030.0,103020.0,0.0001724]
[1734266876222,0.49507203,103030.0,103020.0,0.0001724]
[1734266876418,0.5082661,103030.0,103020.0,0.00033621]
[1734266876633,0.49507203,103030.0,103020.0,0.00033621]
[1734266877037,0.194174,103000.0,102990.0,0.0001724]
[1734266877268,0.42212803,103000.0,102990.0,0.0001724]
[1734266877675,0.49512803,103000.0,102990.0,0.0001724]
[1734266878438,0.59512803,103000.0,102990.0,0.0001724]
[1734266878637,0.244193,102990.0,102980.0,0.0001724]
[1734266878848,0.49514703,102990.0,102980.0,0.0001724]
[1734266879344,0.44514703,102990.0,102980.0,0.0001724]
[1734266879986,0.44531096,102990.0,102980.0,0.0001724]
[1734266880201,0.25111796,102990.0,102980.0,0.0001724]
[1734266880433,0.1572089,102990.0,102980.0,0.1943844]
[1734266880642,0.09921796,102990.0,102980.0,0.1943844]
[1734266880854,0.11877985,102990.0,102980.0,0.1943844]
[1734266881091,0.09921796,102990.0,102980.0,0.3443844]
[1734266881302,0.09921796,102990.0,102980.0,0.3943844]
[1734266881712,0.09921796,102990.0,102980.0,0.3443844]
[1734266882778,0.09921796,102990.0,102980.0,0.3943844]
[1734266883042,0.00016393,102990.0,102980.0,0.3943844]
[1734266883262,0.00016393,102990.0,102980.0,2.5366984]
[1734266883472,0.5369,103020.0,103010.0,0.194155]
[1734266883687,0.09905403,103020.0,103010.0,0.194155]
[1734266883899,0.09905403,103020.0,103010.0,0.394155]
[1734266884123,0.59507079,103040.0,103030.0,0.194118]
[1734266884344,0.63595403,103040.0,103030.0,0.194118]
[1734266884560,0.63611833,103040.0,103030.0,0.194118]
[1734266885577,0.63903944,103040.0,103030.0,0.194118]
[1734266886263,0.63611833,103040.0,103030.0,0.194118]
[1734266886474,0.09921833,103040.0,103030.0,0.394118]
[1734266888352,0.0001643,103040.0,103030.0,0.394118]
[1734266888982,0.09921833,103040.0,103030.0,0.344118]
[1734266889183,0.09921833,103040.0,103030.0,0.394118]